fUSD/lending_fUSD_20260611
["ID","MTS","AMOUNT","RATE_DAILY","PERIOD"]
[424795475,1781170246000,-150.0,0.00013944,2]
[424795472,1781170246000,-206.21376896,0.00013927,2]
[424795476,1781170246000,-206.21376896,0.00013957,2]
[424795471,1781170246000,-150.0,0.00013916,2]
[424795463,1781170246000,-206.21376896,0.00013866,2]
[424795470,1781170246000,-206.21376896,0.00013912,2]
[424795467,1781170246000,-150.0,0.00013884,2]
[424795473,1781170246000,-150.0,0.00013928,2]
[424795562,1781170247000,-150.0,0.00014237,2]
[424795565,1781170247000,-150.0,0.00014237,2]
[424795561,1781170247000,-150.0,0.00014237,2]
[424795541,1781170247000,-164.33069,0.00014227,2]
[424795559,1781170247000,-1109.897968,0.00014227,2]
[424795558,1781170247000,-1109.897968,0.00014227,2]
[424795560,1781170247000,-206.21376896,0.00014229,2]
[424795556,1781170247000,-1109.897968,0.00014227,2]
[424795554,1781170247000,-1109.897968,0.00014227,2]
[424795550,1781170247000,-177.357647,0.00014227,2]
[424795563,1781170247000,-150.0,0.00014237,2]
[424795551,1781170247000,-177.357647,0.00014227,2]
[424795564,1781170247000,-150.0,0.00014237,2]
[424795571,1781170247000,-150.0,0.00014281,2]
[424795566,1781170247000,-150.0,0.00014237,2]
[424795575,1781170247000,-150.0,0.00014302,2]
[424795573,1781170247000,-150.0,0.00014291,2]
[424795568,1781170247000,-206.21376896,0.0001426,2]
[424795576,1781170247000,-206.21376896,0.00014305,2]
[424795570,1781170247000,-206.21376896,0.00014275,2]
[424795572,1781170247000,-206.21376896,0.0001429,2]
[424795577,1781170247000,-206.21376896,0.0001432,2]
[424795567,1781170247000,-206.21376896,0.00014245,2]
[424795569,1781170247000,-150.0,0.0001427,2]
[424795578,1781170247000,-150.0,0.00014325,2]
[424795529,1781170247000,-151.0,0.00014212,2]
[424795574,1781170247000,-4457.829219,0.00014298,2]
[424795534,1781170247000,-151.0,0.00014227,2]
[424795582,1781170247000,-206.21376896,0.00014351,2]
[424795532,1781170247000,-1555.5,0.00014226,2]
[424795513,1781170247000,-150.0,0.00014105,2]
[424795516,1781170247000,-206.21376896,0.00014123,2]
[424795511,1781170247000,-150.0,0.00014087,2]
[424795510,1781170247000,-206.21376896,0.00014078,2]
[424795515,1781170247000,-206.21376896,0.00014108,2]
[424795512,1781170247000,-206.21376896,0.00014093,2]
[424795514,1781170247000,-150.0,0.00014107,2]
[424795522,1781170247000,-206.21376896,0.00014169,2]
[424795517,1781170247000,-150.0,0.0001413,2]
[424795521,1781170247000,-206.21376896,0.00014154,2]
[424795519,1781170247000,-150.0,0.00014139,2]
[424795520,1781170247000,-150.0,0.00014149,2]
[424795545,1781170247000,-164.33069,0.00014227,2]
[424795528,1781170247000,-150.0,0.00014204,2]
[424795525,1781170247000,-206.21376896,0.00014184,2]
[424795523,1781170247000,-150.0,0.00014172,2]
[424795518,1781170247000,-206.21376896,0.00014139,2]
[424795526,1781170247000,-150.0,0.00014193,2]
[424795527,1781170247000,-206.21376896,0.00014199,2]
[424795543,1781170247000,-164.33069,0.00014227,2]
[424795537,1781170247000,-151.0,0.00014227,2]
[424795549,1781170247000,-177.357647,0.00014227,2]
[424795539,1781170247000,-164.33069,0.00014227,2]
[424795533,1781170247000,-151.0,0.00014227,2]
[424795530,1781170247000,-151.0,0.00014212,2]
[424795531,1781170247000,-206.21376896,0.00014214,2]
[424795524,1781170247000,-150.0,0.00014183,2]
[424795579,1781170247000,-150.0,0.00014335,2]
[424795547,1781170247000,-177.357647,0.00014227,2]
[424795583,1781170247000,-206.21376896,0.00014366,2]
[424795623,1781170247000,-206.21376896,0.00014472,2]
[424795612,1781170247000,-150.0,0.000144,2]
[424795639,1781170247000,-500.0,0.00014526,2]
[424795621,1781170247000,-150.0,0.00014457,2]
[424795616,1781170247000,-206.21376896,0.00014426,2]
[424795617,1781170247000,-150.0,0.00014432,2]
[424795618,1781170247000,-206.21376896,0.00014441,2]
[424795614,1781170247000,-150.0,0.00014413,2]
[424795615,1781170247000,-150.0,0.00014424,2]
[424795620,1781170247000,-206.21376896,0.00014456,2]
[424795619,1781170247000,-150.0,0.00014451,2]
[424795625,1781170247000,-206.21376896,0.00014487,2]
[424795613,1781170247000,-206.21376896,0.00014411,2]
[424795635,1781170247000,-500.0,0.00014526,2]
[424795624,1781170247000,-168.90688265,0.00014473,2]
[424795627,1781170247000,-19479.77009048,0.000145,2]
[424795628,1781170247000,-150.0,0.00014501,2]
[424795630,1781170247000,-1421.21,0.00014503,2]
[424795633,1781170247000,-500.0,0.00014526,2]
[424795629,1781170247000,-206.21376896,0.00014502,2]
[424795631,1781170247000,-150.0,0.00014505,2]
[424795632,1781170247000,-206.21376896,0.00014517,2]
[424795634,1781170247000,-500.0,0.00014526,2]
[424795637,1781170247000,-500.0,0.00014526,2]
[424795638,1781170247000,-500.0,0.00014526,2]
[424795581,1781170247000,-150.0,0.00014344,2]
[424795626,1781170247000,-150.0,0.00014498,2]
[424795622,1781170247000,-150.0,0.00014465,2]
[424795636,1781170247000,-500.0,0.00014526,2]
[424795608,1781170247000,-206.21376896,0.00014381,2]
[424795609,1781170247000,-150.0,0.00014387,2]
[424795580,1781170247000,-206.21376896,0.00014335,2]
[424795588,1781170247000,-500.0,0.00014369,2]
[424795587,1781170247000,-500.0,0.00014369,2]
[424795584,1781170247000,-150.0,0.00014367,2]
[424795586,1781170247000,-500.0,0.00014369,2]
[424795589,1781170247000,-150.0,0.00014369,2]
[424795591,1781170247000,-539.51,0.0001437,2]
[424795594,1781170247000,-539.51,0.0001437,2]
[424795590,1781170247000,-539.51,0.0001437,2]
[424795592,1781170247000,-539.51,0.0001437,2]
[424795593,1781170247000,-539.51,0.0001437,2]
[424795596,1781170247000,-2201.56,0.0001437,2]
[424795585,1781170247000,-500.0,0.00014369,2]
[424795595,1781170247000,-539.51,0.0001437,2]
[424795599,1781170247000,-2201.56,0.0001437,2]
[424795610,1781170247000,-206.21376896,0.00014396,2]
[424795607,1781170247000,-660.37,0.0001437,2]
[424795603,1781170247000,-660.37,0.0001437,2]
[424795605,1781170247000,-660.37,0.0001437,2]
[424795606,1781170247000,-660.37,0.0001437,2]
[424795611,1781170247000,-150.0,0.00014398,2]
[424795602,1781170247000,-660.37,0.0001437,2]
[424795601,1781170247000,-2201.56,0.0001437,2]
[424795598,1781170247000,-2201.56,0.0001437,2]
[424795600,1781170247000,-2201.56,0.0001437,2]
[424795597,1781170247000,-2201.56,0.0001437,2]
[424795604,1781170247000,-660.37,0.0001437,2]
[424795673,1781170248000,-150.0,0.00014678,2]
[424795679,1781170248000,-206.21376896,0.00014714,2]
[424795676,1781170248000,-150.0,0.00014693,2]
[424795672,1781170248000,-206.21376896,0.00014668,2]
[424795675,1781170248000,-150.0,0.00014687,2]
[424795678,1781170248000,-8200.0,0.000147,5]
[424795674,1781170248000,-206.21376896,0.00014684,2]
[424795670,1781170248000,-150.0,0.00014661,2]
[424795669,1781170248000,-206.21376896,0.00014653,2]
[424795677,1781170248000,-206.21376896,0.00014699,2]
[424795671,1781170248000,-150.0,0.00014665,2]
[424795685,1781170248000,-150.0,0.00014758,2]
[424795681,1781170248000,-150.0,0.00014722,2]
[424795683,1781170248000,-206.21376896,0.00014729,2]
[424795682,1781170248000,-150.0,0.00014726,2]
[424795680,1781170248000,-150.0,0.00014719,2]
[424795690,1781170248000,-500.0,0.00014772,2]
[424795689,1781170248000,-500.0,0.00014772,2]
[424795686,1781170248000,-206.21376896,0.00014759,2]
[424795687,1781170248000,-150.0,0.00014766,2]
[424795684,1781170248000,-206.21376896,0.00014744,2]
[424795692,1781170248000,-500.0,0.00014772,2]
[424795667,1781170248000,-150.0,0.00014634,2]
[424795691,1781170248000,-500.0,0.00014772,2]
[424795688,1781170248000,-500.0,0.00014772,2]
[424795668,1781170248000,-206.21376896,0.00014638,2]
[424795647,1781170248000,-233.24958669,0.00014526,2]
[424795661,1781170248000,-150.0,0.00014612,2]
[424795697,1781170248000,-500.0,0.00014772,2]
[424795643,1781170248000,-500.0,0.00014526,2]
[424795641,1781170248000,-500.0,0.00014526,2]
[424795640,1781170248000,-500.0,0.00014526,2]
[424795642,1781170248000,-500.0,0.00014526,2]
[424795644,1781170248000,-500.0,0.00014526,2]
[424795646,1781170248000,-500.0,0.00014526,2]
[424795645,1781170248000,-500.0,0.00014526,2]
[424795648,1781170248000,-150.0,0.0001453,2]
[424795653,1781170248000,-206.21376896,0.00014562,2]
[424795652,1781170248000,-150.0,0.00014558,2]
[424795666,1781170248000,-151.0,0.0001463,2]
[424795649,1781170248000,-206.21376896,0.00014532,2]
[424795655,1781170248000,-206.21376896,0.00014578,2]
[424795651,1781170248000,-206.21376896,0.00014547,2]
[424795654,1781170248000,-150.0,0.00014563,2]
[424795656,1781170248000,-150.0,0.0001459,2]
[424795658,1781170248000,-150.0,0.00014595,2]
[424795663,1781170248000,-206.21376896,0.00014623,2]
[424795662,1781170248000,-150.0,0.00014612,2]
[424795659,1781170248000,-206.21376896,0.00014608,2]
[424795665,1781170248000,-151.0,0.0001463,2]
[424795660,1781170248000,-150.0,0.00014612,2]
[424795664,1781170248000,-150.0,0.00014628,2]
[424795657,1781170248000,-206.21376896,0.00014593,2]
[424795698,1781170248000,-500.0,0.00014772,2]
[424795650,1781170248000,-150.0,0.00014546,2]
[424795700,1781170248000,-500.0,0.00014772,2]
[424795726,1781170248000,-2201.56,0.00014773,2]
[424795727,1781170248000,-2201.62424701,0.00014773,2]
[424795728,1781170248000,-660.37,0.00014773,2]
[424795729,1781170248000,-660.37,0.00014773,2]
[424795730,1781170248000,-660.37,0.00014773,2]
[424795731,1781170248000,-660.37,0.00014773,2]
[424795735,1781170248000,-206.21376896,0.0001479,2]
[424795734,1781170248000,-206.21376896,0.00014774,2]
[424795733,1781170248000,-1613.0535,0.00014774,2]
[424795732,1781170248000,-660.37338711,0.00014773,2]
[424795740,1781170248000,-206.21376896,0.00014805,2]
[424795739,1781170248000,-8200.0,0.000148,5]
[424795750,1781170248000,-25000.0,0.00014856,3]
[424795738,1781170248000,-189.11594884,0.000148,2]
[424795737,1781170248000,-150.0,0.00014799,2]
[424795743,1781170248000,-150.0,0.00014823,2]
[424795742,1781170248000,-206.21376896,0.0001482,2]
[424795748,1781170248000,-150.0,0.00014854,2]
[424795747,1781170248000,-206.21376896,0.0001485,2]
[424795741,1781170248000,-150.0,0.0001481,2]
[424795744,1781170248000,-150.0,0.00014826,2]
[424795746,1781170248000,-25000.0,0.00014847,3]
[424795745,1781170248000,-206.21376896,0.00014835,2]
[424795749,1781170248000,-150.0,0.00014856,2]
[424795699,1781170248000,-500.0,0.00014772,2]
[424795725,1781170248000,-2201.56,0.00014773,2]
[424795724,1781170248000,-2201.56,0.00014773,2]
[424795736,1781170248000,-150.0,0.00014791,2]
[424795722,1781170248000,-172.5,0.00014773,2]
[424795693,1781170248000,-500.0,0.00014772,2]
[424795723,1781170248000,-2201.56,0.00014773,2]
[424795696,1781170248000,-500.0,0.00014772,2]
[424795701,1781170248000,-500.0,0.00014772,2]
[424795694,1781170248000,-500.0,0.00014772,2]
[424795695,1781170248000,-500.0,0.00014772,2]
[424795706,1781170248000,-500.0,0.00014772,2]
[424795703,1781170248000,-500.0,0.00014772,2]
[424795704,1781170248000,-500.0,0.00014772,2]
[424795708,1781170248000,-500.0,0.00014772,2]
[424795707,1781170248000,-500.0,0.00014772,2]
[424795709,1781170248000,-500.0,0.00014772,2]
[424795705,1781170248000,-500.0,0.00014772,2]
[424795711,1781170248000,-500.0,0.00014772,2]
[424795710,1781170248000,-500.0,0.00014772,2]
[424795721,1781170248000,-172.5,0.00014773,2]
[424795713,1781170248000,-500.0,0.00014772,2]
[424795718,1781170248000,-325.05456704,0.00014772,2]
[424795719,1781170248000,-150.0,0.00014772,2]
[424795715,1781170248000,-500.0,0.00014772,2]
[424795716,1781170248000,-500.0,0.00014772,2]
[424795720,1781170248000,-172.5,0.00014773,2]
[424795714,1781170248000,-500.0,0.00014772,2]
[424795702,1781170248000,-500.0,0.00014772,2]
[424795712,1781170248000,-500.0,0.00014772,2]
[424795717,1781170248000,-500.0,0.00014772,2]
[424795787,1781170249000,-206.21376896,0.00014911,2]
[424795783,1781170249000,-8200.0,0.000149,5]
[424795782,1781170249000,-25000.0,0.000149,3]
[424795784,1781170249000,-25000.0,0.000149,3]
[424795793,1781170249000,-150.0,0.00014942,2]
[424795791,1781170249000,-150.0,0.00014933,2]
[424795794,1781170249000,-150.0,0.00014954,2]
[424795792,1781170249000,-206.21376896,0.00014941,2]
[424795790,1781170249000,-206.21376896,0.00014926,2]
[424795781,1781170249000,-6820.62317621,0.000149,2]
[424795789,1781170249000,-180.46972026,0.00014925,2]
[424795788,1781170249000,-150.0,0.00014921,2]
[424795803,1781170249000,-257.36274764,0.00014986,2]
[424795785,1781170249000,-2000.0,0.000149,2]
[424795795,1781170249000,-206.21376896,0.00014956,2]
[424795798,1781170249000,-490369.8743084,0.00014975,2]
[424795800,1781170249000,-159.53,0.00014985,2]
[424795796,1781170249000,-206.21376896,0.00014971,2]
[424795801,1781170249000,-248.12091067,0.00014986,2]
[424795806,1781170249000,-210.0975545,0.00014986,2]
[424795799,1781170249000,-3620.0830579,0.00014975,2]
[424795797,1781170249000,-2985.517279,0.00014975,2]
[424795805,1781170249000,-150.75812701,0.00014986,2]
[424795780,1781170249000,-25000.0,0.000149,3]
[424795786,1781170249000,-171.48663565,0.000149,2]
[424795779,1781170249000,-500.0,0.00014899,2]
[424795756,1781170249000,-500.0,0.00014874,2]
[424795777,1781170249000,-500.0,0.00014899,2]
[424795802,1781170249000,-225.43309031,0.00014986,2]
[424795755,1781170249000,-500.0,0.00014874,2]
[424795754,1781170249000,-25000.0,0.00014874,3]
[424795753,1781170249000,-25000.0,0.00014874,3]
[424795751,1781170249000,-25000.0,0.00014865,3]
[424795752,1781170249000,-206.21376896,0.00014865,2]
[424795759,1781170249000,-150.0,0.00014879,2]
[424795757,1781170249000,-500.0,0.00014874,2]
[424795758,1781170249000,-500.0,0.00014874,2]
[424795760,1781170249000,-206.21376896,0.0001488,2]
[424795764,1781170249000,-25000.0,0.00014891,3]
[424795765,1781170249000,-25000.0,0.00014891,3]
[424795778,1781170249000,-500.0,0.00014899,2]
[424795762,1781170249000,-25000.0,0.00014882,3]
[424795761,1781170249000,-25000.0,0.00014882,3]
[424795763,1781170249000,-150.0,0.00014889,2]
[424795767,1781170249000,-206.21376896,0.00014895,2]
[424795768,1781170249000,-150.0,0.00014898,2]
[424795771,1781170249000,-500.0,0.00014899,2]
[424795770,1781170249000,-549.51495302,0.00014899,2]
[424795769,1781170249000,-500.0,0.00014899,2]
[424795772,1781170249000,-500.0,0.00014899,2]
[424795773,1781170249000,-500.0,0.00014899,2]
[424795775,1781170249000,-500.0,0.00014899,2]
[424795774,1781170249000,-500.0,0.00014899,2]
[424795776,1781170249000,-500.0,0.00014899,2]
[424795766,1781170249000,-25000.0,0.00014891,3]
[424795804,1781170249000,-208.1114482,0.00014986,2]
[424795818,1781170249000,-539.51,0.00014999,2]
[424795808,1781170249000,-285.87761885,0.00014986,2]
[424795840,1781170249000,-483.82,0.00015,2]
[424795839,1781170249000,-1161.17,0.00015,2]
[424795841,1781170249000,-290.3,0.00015,2]
[424795843,1781170249000,-1996.09,0.00015,2]
[424795844,1781170249000,-1665.04,0.00015,2]
[424795846,1781170249000,-200.0,0.00015,2]
[424795851,1781170249000,-151.0,0.00015,2]
[424795847,1781170249000,-1189.31,0.00015,2]
[424795850,1781170249000,-151.0,0.00015,2]
[424795849,1781170249000,-297.32,0.00015,2]
[424795845,1781170249000,-999.02,0.00015,2]
[424795848,1781170249000,-495.55,0.00015,2]
[424795842,1781170249000,-2000.0,0.00015,2]
[424795852,1781170249000,-152.050253,0.00015,2]
[424795815,1781170249000,-1168.92649491,0.00014999,5]
[424795855,1781170249000,-151.0,0.00015,2]
[424795859,1781170249000,-164.33069,0.00015,2]
[424795854,1781170249000,-151.0,0.00015,2]
[424795860,1781170249000,-164.33069,0.00015,2]
[424795857,1781170249000,-164.33069,0.00015,2]
[424795856,1781170249000,-151.0,0.00015,2]
[424795858,1781170249000,-164.33069,0.00015,2]
[424795861,1781170249000,-164.33069,0.00015,2]
[424795862,1781170249000,-164.33069,0.00015,2]
[424795863,1781170249000,-164.33069,0.00015,2]
[424795837,1781170249000,-6337.63512786,0.00015,2]
[424795838,1781170249000,-440.72,0.00015,2]
[424795853,1781170249000,-151.0,0.00015,2]
[424795833,1781170249000,-666.0,0.00014999,2]
[424795836,1781170249000,-400.0,0.00015,2]
[424795816,1781170249000,-1168.92649491,0.00014999,5]
[424795811,1781170249000,-151.0,0.00014997,2]
[424795809,1781170249000,-289.90717118,0.00014986,2]
[424795814,1781170249000,-1168.92649491,0.00014999,5]
[424795817,1781170249000,-1168.92649491,0.00014999,5]
[424795810,1781170249000,-206.21376896,0.00014986,2]
[424795807,1781170249000,-4702.0,0.00014986,2]
[424795813,1781170249000,-199.48738674,0.00014999,5]
[424795819,1781170249000,-539.51,0.00014999,2]
[424795820,1781170249000,-539.51,0.00014999,2]
[424795829,1781170249000,-300.0,0.00014999,2]
[424795812,1781170249000,-1168.92649491,0.00014999,5]
[424795821,1781170249000,-539.51,0.00014999,2]
[424795835,1781170249000,-7692364.23426998,0.00015,2]
[424795823,1781170249000,-300.0,0.00014999,2]
[424795834,1781170249000,-1804731.85334728,0.00015,2]
[424795832,1781170249000,-300.0,0.00014999,2]
[424795830,1781170249000,-300.0,0.00014999,2]
[424795827,1781170249000,-300.0,0.00014999,2]
[424795831,1781170249000,-666.0,0.00014999,2]
[424795826,1781170249000,-687.07472415,0.00014999,2]
[424795825,1781170249000,-300.0,0.00014999,2]
[424795828,1781170249000,-666.0,0.00014999,2]
[424795824,1781170249000,-300.0,0.00014999,2]
[424795822,1781170249000,-539.57889603,0.00014999,2]
[424795886,1781170250000,-151.0,0.00015068,2]
[424795884,1781170250000,-1109.897968,0.00015,2]
[424795883,1781170250000,-1109.897968,0.00015,2]
[424795882,1781170250000,-1109.897968,0.00015,2]
[424795885,1781170250000,-350.0,0.00015014,3]
[424795890,1781170250000,-3620.0,0.00015149,2]
[424795896,1781170250000,-400.0,0.000152,2]
[424795888,1781170250000,-151.0,0.00015068,2]
[424795889,1781170250000,-215.639621,0.00015068,2]
[424795891,1781170250000,-200.0,0.0001515,2]
[424795895,1781170250000,-666.0,0.00015199,2]
[424795892,1781170250000,-300.0,0.00015199,2]
[424795880,1781170250000,-1109.897968,0.00015,2]
[424795887,1781170250000,-151.0,0.00015068,2]
[424795875,1781170250000,-177.357647,0.00015,2]
[424795866,1781170250000,-151.0,0.00015,2]
[424795876,1781170250000,-177.357647,0.00015,2]
[424795894,1781170250000,-300.0,0.00015199,2]
[424795865,1781170250000,-151.0,0.00015,2]
[424795864,1781170250000,-164.33069,0.00015,2]
[424795868,1781170250000,-151.0,0.00015,2]
[424795870,1781170250000,-177.357647,0.00015,2]
[424795869,1781170250000,-177.357647,0.00015,2]
[424795877,1781170250000,-1109.897968,0.00015,2]
[424795867,1781170250000,-151.0,0.00015,2]
[424795871,1781170250000,-177.357647,0.00015,2]
[424795872,1781170250000,-177.357647,0.00015,2]
[424795874,1781170250000,-177.357647,0.00015,2]
[424795878,1781170250000,-1109.897968,0.00015,2]
[424795879,1781170250000,-1109.897968,0.00015,2]
[424795881,1781170250000,-1109.897968,0.00015,2]
[424795873,1781170250000,-177.357647,0.00015,2]
[424795893,1781170250000,-666.0,0.00015199,2]
[424795897,1781170250000,-6337.63512786,0.000152,2]
[424795901,1781170250000,-666.0,0.00015299,2]
[424795903,1781170250000,-6337.63512786,0.000153,2]
[424795928,1781170250000,-513.90672332,0.00015821,2]
[424795927,1781170250000,-513.90672332,0.00015816,2]
[424795922,1781170250000,-300.0,0.00015807,2]
[424795929,1781170250000,-5628.00205914,0.00015832,2]
[424795926,1781170250000,-513.90672332,0.00015812,2]
[424795923,1781170250000,-300.0,0.00015807,2]
[424795924,1781170250000,-10000.0,0.00015808,2]
[424795920,1781170250000,-300.0,0.00015807,2]
[424795921,1781170250000,-300.0,0.00015807,2]
[424795912,1781170250000,-6337.63512786,0.000155,2]
[424795914,1781170250000,-400.0,0.000156,2]
[424795913,1781170250000,-377.99479175,0.00015599,2]
[424795915,1781170250000,-6337.63512786,0.000156,2]
[424795911,1781170250000,-400.0,0.000155,2]
[424795925,1781170250000,-5628.00205914,0.00015812,2]
[424795919,1781170250000,-6337.63512786,0.000158,2]
[424795909,1781170250000,-300.0,0.00015499,2]
[424795907,1781170250000,-1672.7364795,0.00015322,2]
[424795904,1781170250000,-200.0,0.00015301,2]
[424795899,1781170250000,-300.0,0.00015299,2]
[424795930,1781170250000,-5628.00205914,0.00015838,2]
[424795902,1781170250000,-400.0,0.000153,2]
[424795908,1781170250000,-200.0,0.00015455,2]
[424795900,1781170250000,-300.0,0.00015299,2]
[424795906,1781170250000,-7665.35,0.0001531,2]
[424795905,1781170250000,-300.0,0.00015309,2]
[424795910,1781170250000,-300.0,0.00015499,2]
[424795917,1781170250000,-513.90672332,0.00015794,2]
[424795916,1781170250000,-200.0,0.00015609,2]
[424795898,1781170250000,-240.16283291,0.00015209,2]
[424795918,1781170250000,-5628.00205914,0.00015797,2]
[424795959,1781170251000,-513.90672332,0.00016086,2]
[424795954,1781170251000,-513.90672332,0.00016059,2]
[424795964,1781170251000,-7717.02363909,0.0001611,15]
[424795960,1781170251000,-5628.00205914,0.00016092,2]
[424795955,1781170251000,-5628.00205914,0.00016063,2]
[424795957,1781170251000,-5628.00205914,0.00016073,2]
[424795958,1781170251000,-5628.00205914,0.00016084,2]
[424795961,1781170251000,-5628.00205914,0.00016096,2]
[424795962,1781170251000,-6337.63512786,0.000161,2]
[424795967,1781170251000,-6337.63512786,0.000162,2]
[424795969,1781170251000,-1798.80895522,0.00016418,2]
[424795968,1781170251000,-6337.63512786,0.000164,2]
[424795966,1781170251000,-300.0,0.00016115,2]
[424795965,1781170251000,-5628.00205914,0.00016111,2]
[424795975,1781170251000,-176.30800682,0.00016438,2]
[424795971,1781170251000,-198.39972813,0.00016438,2]
[424795976,1781170251000,-176.76038314,0.00016438,2]
[424795970,1781170251000,-280.8,0.00016438,2]
[424795973,1781170251000,-252.52208799,0.00016438,2]
[424795983,1781170251000,-151.0,0.00016438,2]
[424795956,1781170251000,-513.90672332,0.00016065,2]
[424795974,1781170251000,-173.7534592,0.00016438,2]
[424795963,1781170251000,-5628.00205914,0.00016103,2]
[424795940,1781170251000,-300.0,0.00015907,2]
[424795951,1781170251000,-191.99780672,0.00016,2]
[424795932,1781170251000,-513.90672332,0.00015863,2]
[424795931,1781170251000,-513.90672332,0.00015856,2]
[424795934,1781170251000,-5628.00205914,0.00015873,2]
[424795935,1781170251000,-513.90672332,0.00015877,2]
[424795933,1781170251000,-1734.62772924,0.0001587,2]
[424795938,1781170251000,-513.90672332,0.00015901,2]
[424795937,1781170251000,-6337.63512786,0.000159,2]
[424795981,1781170251000,-151.0,0.00016438,2]
[424795939,1781170251000,-300.0,0.00015907,2]
[424795941,1781170251000,-300.0,0.00015907,2]
[424795936,1781170251000,-513.90672332,0.00015882,2]
[424795948,1781170251000,-5628.00205914,0.00015978,2]
[424795942,1781170251000,-300.0,0.00015907,2]
[424795947,1781170251000,-513.90672332,0.00015966,2]
[424795952,1781170251000,-513.90672332,0.00016008,2]
[424795945,1781170251000,-513.90672332,0.00015942,2]
[424795943,1781170251000,-10000.0,0.00015908,2]
[424795949,1781170251000,-513.90672332,0.00015989,2]
[424795950,1781170251000,-300.0,0.00016,2]
[424795946,1781170251000,-513.90672332,0.00015963,2]
[424795944,1781170251000,-513.90672332,0.00015939,2]
[424795953,1781170251000,-513.90672332,0.00016041,2]
[424795986,1781170251000,-426.747296,0.00016438,2]
[424795972,1781170251000,-200.07942119,0.00016438,2]
[424795977,1781170251000,-154.610542,0.00016438,2]
[424796007,1781170251000,-2407.0,0.00016662,2]
[424796008,1781170251000,-150.0,0.000167,7]
[424796009,1781170251000,-1865.36488656,0.00016966,2]
[424796011,1781170251000,-249.0,0.00017794,2]
[424796019,1781170251000,-280.8,0.0001841,2]
[424796012,1781170251000,-300.0,0.00017999,2]
[424796018,1781170251000,-1125.0,0.00018139,2]
[424796014,1781170251000,-227.69822417,0.00018,2]
[424796013,1781170251000,-7884.3262389,0.00018,2]
[424796021,1781170251000,-151.0,0.0001861,2]
[424796006,1781170251000,-161.94822475,0.00016657,2]
[424796016,1781170251000,-164.80586694,0.00018,2]
[424796017,1781170251000,-2005.9555727,0.00018062,2]
[424796025,1781170251000,-151.0,0.0001861,2]
[424796023,1781170251000,-151.0,0.0001861,2]
[424796026,1781170251000,-151.0,0.0001861,2]
[424796024,1781170251000,-151.0,0.0001861,2]
[424796022,1781170251000,-151.0,0.0001861,2]
[424796027,1781170251000,-500.0,0.0001861,2]
[424796029,1781170251000,-2080.17592889,0.0001861,2]
[424795979,1781170251000,-151.0,0.00016438,2]
[424796028,1781170251000,-151.0,0.0001861,2]
[424796020,1781170251000,-200.0,0.0001861,2]
[424796004,1781170251000,-440.72,0.000165,2]
[424796015,1781170251000,-350.0,0.00018,2]
[424796010,1781170251000,-1934.38338736,0.00017514,2]
[424795978,1781170251000,-151.0,0.00016438,2]
[424795984,1781170251000,-151.0,0.00016438,2]
[424796005,1781170251000,-168.90688265,0.0001663,2]
[424795982,1781170251000,-151.0,0.00016438,2]
[424795985,1781170251000,-426.747296,0.00016438,2]
[424795987,1781170251000,-426.747296,0.00016438,2]
[424795980,1781170251000,-151.0,0.00016438,2]